bitfinex-derivatives/quotes_BTCF0:USTF0_20250527
["timestamp","ask_amount","ask_price","bid_price","bid_amount"]
[1748347492499,1.5794776,109630.0,109620.0,0.50097852]
[1748347492696,1.5794776,109630.0,109620.0,0.5047333]
[1748347493705,1.69528681,109630.0,109620.0,0.5047333]
[1748347494600,1.69528681,109630.0,109620.0,0.50472868]
[1748347497607,1.69528681,109630.0,109620.0,0.45768113]
[1748347498107,1.69528681,109630.0,109620.0,0.44627693]
[1748347498306,1.69528681,109630.0,109620.0,0.45768109]
[1748347499705,1.69528681,109630.0,109620.0,0.34187107]
[1748347499910,1.69528681,109630.0,109620.0,0.45768028]
[1748347500410,1.69528681,109630.0,109620.0,0.25227166]
[1748347500612,1.69528681,109630.0,109620.0,0.49227166]
[1748347501712,1.69528681,109630.0,109620.0,0.48086747]
[1748347501912,1.5794776,109630.0,109620.0,0.49227163]
[1748347502213,1.69516681,109630.0,109620.0,0.49227163]
[1748347502808,1.26300681,109630.0,109620.0,0.49227163]
[1748347503014,1.69324681,109630.0,109620.0,0.49227163]
[1748347505112,1.69324681,109630.0,109620.0,0.49227287]
[1748347506718,1.69324681,109630.0,109620.0,0.52537287]
[1748347506910,1.79780681,109630.0,109620.0,0.52537287]
[1748347507418,1.5414776,109630.0,109620.0,0.52537287]
[1748347507617,1.4788376,109630.0,109620.0,0.70775837]
[1748347507912,1.4789576,109630.0,109620.0,0.70775837]
[1748347508319,1.5095576,109630.0,109620.0,0.75484293]
[1748347508515,1.5424576,109630.0,109620.0,0.75484293]
[1748347508820,1.5424576,109630.0,109620.0,0.76624844]
[1748347509010,1.5424576,109630.0,109620.0,0.75484428]
[1748347509407,1.5424576,109630.0,109620.0,0.70775955]
[1748347509614,1.5424576,109630.0,109620.0,0.70494342]
[1748347511206,1.5424576,109630.0,109620.0,0.58913421]
[1748347511413,1.5424576,109630.0,109620.0,0.52255792]
[1748347513613,1.5424576,109630.0,109620.0,0.40674871]
[1748347513822,1.65826681,109630.0,109620.0,0.52255792]
[1748347514621,1.5424576,109630.0,109620.0,0.56967729]
[1748347514815,1.5824576,109630.0,109620.0,0.56967729]
[1748347515021,1.65826681,109630.0,109620.0,0.56967729]
[1748347515221,1.70826681,109630.0,109620.0,0.56967729]
[1748347515414,2.00826681,109630.0,109620.0,0.56967729]
[1748347515615,1.82826681,109630.0,109620.0,0.5696773]
[1748347515820,1.99826681,109630.0,109620.0,0.5696773]
[1748347516017,2.03826681,109630.0,109620.0,0.5696773]
[1748347516219,1.73826681,109630.0,109620.0,0.5696773]
[1748347516910,1.6924576,109630.0,109620.0,0.5696773]
[1748347517215,1.80826681,109630.0,109620.0,0.5696773]
[1748347519021,1.80826681,109630.0,109620.0,0.52255793]
[1748347521218,1.6924576,109630.0,109620.0,0.52255793]
[1748347521413,1.80826681,109630.0,109620.0,0.52255793]
[1748347522424,1.80826681,109630.0,109620.0,0.51115377]
[1748347522718,1.80826681,109630.0,109620.0,0.52255792]
[1748347522927,1.6924576,109630.0,109620.0,0.40674871]
[1748347523224,1.6924576,109630.0,109620.0,0.52537889]
[1748347523813,1.80826681,109630.0,109620.0,0.52537889]
[1748347524016,1.80826681,109630.0,109620.0,0.57271614]
[1748347524218,1.80586681,109630.0,109620.0,0.57271614]
[1748347524818,1.6900576,109630.0,109620.0,0.57271614]
[1748347525922,1.6900576,109630.0,109620.0,0.57271557]
[1748347529516,1.6900576,109630.0,109620.0,0.57271701]
[1748347532923,1.6900576,109630.0,109620.0,0.62005665]
[1748347533228,1.6900576,109630.0,109620.0,0.56989747]
[1748347533929,1.6900576,109630.0,109620.0,0.45408826]
[1748347536221,1.6900576,109630.0,109620.0,0.56989747]
[1748347536527,1.6900576,109630.0,109620.0,0.56989957]
[1748347537331,1.6899376,109630.0,109620.0,0.56989957]
[1748347539931,1.6899376,109630.0,109620.0,0.56989958]
[1748347541131,1.6899376,109630.0,109620.0,0.75228508]
[1748347542329,1.6899376,109630.0,109620.0,0.56989958]
[1748347542827,1.2610176,109630.0,109620.0,0.41736723]
[1748347543036,1.1272976,109630.0,109620.0,0.6848894]
[1748347543225,0.0086487,109630.0,109620.0,0.9475458]
[1748347543426,0.6192975,109630.0,109620.0,0.99477442]
[1748347543626,0.6192975,109630.0,109620.0,0.91084827]
[1748347543840,0.6191775,109630.0,109620.0,0.91084827]
[1748347544033,0.6192975,109630.0,109620.0,0.91084827]
[1748347544230,0.6192975,109630.0,109620.0,1.00377881]
[1748347544429,0.6192975,109630.0,109620.0,0.94986846]
[1748347544629,0.6522975,109630.0,109620.0,0.94986846]
[1748347544826,0.6502975,109630.0,109620.0,0.90352504]
[1748347545035,0.6502975,109630.0,109620.0,1.16249702]
[1748347545933,0.6502975,109630.0,109620.0,1.22569702]
[1748347546235,0.0065287,109630.0,109620.0,1.36419957]
[1748347546440,0.1888975,109630.0,109620.0,1.46602759]
[1748347546634,0.1868975,109630.0,109620.0,1.46602759]
[1748347546837,0.1868975,109630.0,109620.0,1.46702653]
[1748347547038,0.1870175,109630.0,109620.0,1.46702653]
[1748347547234,0.1868975,109630.0,109620.0,1.46702653]
[1748347547436,0.1870175,109630.0,109620.0,1.46702653]
[1748347548443,0.1870175,109630.0,109620.0,1.57014653]
[1748347550344,0.1870175,109630.0,109620.0,1.47714574]
[1748347550539,0.1870175,109630.0,109620.0,1.38592574]
[1748347550736,0.1870175,109630.0,109620.0,1.47885628]
[1748347551233,0.1870175,109630.0,109620.0,1.43164391]
[1748347551434,0.1870175,109630.0,109620.0,1.32981589]
[1748347553639,0.0046487,109630.0,109620.0,1.32981589]
[1748347554242,0.18262568,109630.0,109620.0,1.32981589]
[1748347554641,0.21582568,109630.0,109620.0,1.32933589]
[1748347554948,0.03345688,109630.0,109620.0,1.32933589]
[1748347557248,0.03345688,109630.0,109620.0,1.31793445]
[1748347557546,0.03345688,109630.0,109620.0,1.32933581]
[1748347559841,0.03345688,109630.0,109620.0,1.31793445]
[1748347560039,0.03345688,109630.0,109620.0,1.32933581]
[1748347561147,0.03345688,109630.0,109620.0,1.37652524]
[1748347562151,0.03345688,109630.0,109620.0,1.38542272]
[1748347562450,0.21582578,109630.0,109620.0,1.38542272]
[1748347564249,0.21582578,109630.0,109620.0,1.32683193]
[1748347564450,0.21582578,109630.0,109620.0,1.38577609]
[1748347565244,0.24782578,109630.0,109620.0,1.38577609]
[1748347565843,0.24782578,109630.0,109620.0,1.15415767]
[1748347566048,0.24782578,109630.0,109620.0,1.47848598]
[1748347566249,0.24782578,109630.0,109620.0,1.4399272]
[1748347567360,0.2522176,109630.0,109620.0,1.4399272]
[1748347567745,0.2522176,109630.0,109620.0,1.43999271]
[1748347568253,0.0698487,109630.0,109620.0,1.53278704]
[1748347568456,0.03345688,109630.0,109620.0,1.53278704]
[1748347569154,0.00025688,109630.0,109620.0,1.47703332]
[1748347569350,0.00013688,109630.0,109620.0,1.47703332]
[1748347569654,0.00025688,109630.0,109620.0,1.47703332]
[1748347570057,0.0637,109640.0,109620.0,1.45349636]
[1748347570257,0.0637,109640.0,109630.0,0.80999898]
[1748347570258,0.0314,109640.0,109630.0,0.80999898]
[1748347570556,0.03152,109640.0,109630.0,1.22318064]
[1748347570858,0.03152,109640.0,109630.0,1.78111002]
[1748347571260,0.00013688,109650.0,109640.0,0.1823522]
[1748347571448,0.00013688,109650.0,109640.0,1.4367705]
[1748347571650,8e-08,109650.0,109640.0,1.48329183]
[1748347571954,0.00136832,109670.0,109660.0,0.182319]
[1748347572155,0.85178,109680.0,109670.0,0.1823023]
[1748347572355,0.6059857,109680.0,109670.0,0.86952278]
[1748347572660,0.6059857,109680.0,109670.0,0.91206043]
[1748347572854,0.6059857,109680.0,109670.0,0.91581388]
[1748347573059,0.6061057,109680.0,109670.0,0.91581388]
[1748347573263,0.6061057,109680.0,109670.0,0.96620547]
[1748347573453,0.6061057,109680.0,109670.0,0.91581271]
[1748347573963,0.6061057,109680.0,109670.0,0.94226521]
[1748347574262,0.6081057,109680.0,109670.0,0.94326521]
[1748347574558,0.6404057,109680.0,109670.0,0.94326521]
[1748347574864,0.6404057,109680.0,109670.0,0.85044855]
[1748347574865,0.6414057,109680.0,109670.0,0.85044855]
[1748347575463,0.6414057,109680.0,109670.0,0.84480971]
[1748347576452,0.09832,109680.0,109670.0,0.84480971]
[1748347576651,0.2806057,109680.0,109670.0,0.84480971]
[1748347577070,0.09832,109680.0,109670.0,1.20560971]
[1748347577362,0.2804856,109680.0,109670.0,1.21124855]
[1748347577565,0.09832,109680.0,109670.0,1.21124855]
[1748347577757,0.0982,109680.0,109670.0,1.21124855]
[1748347577960,0.09832,109680.0,109670.0,1.21124855]
[1748347578270,0.2806057,109680.0,109670.0,0.80294736]
[1748347578460,0.09832,109680.0,109670.0,1.15810852]
[1748347578661,0.2806057,109680.0,109670.0,1.15810852]
[1748347578859,0.09832,109680.0,109670.0,1.15810852]
[1748347579055,0.09832,109680.0,109670.0,1.29826413]
[1748347579262,0.00013688,109690.0,109680.0,0.1822857]
[1748347579461,0.03073688,109690.0,109680.0,1.25842529]
[1748347579664,0.03073688,109690.0,109680.0,1.14692541]
[1748347579866,0.03073688,109690.0,109680.0,1.22806361]
[1748347580061,0.03085688,109690.0,109680.0,1.23180926]
[1748347580254,0.03085688,109690.0,109680.0,1.22806361]
[1748347580967,0.03185688,109690.0,109680.0,1.22806361]
[1748347581573,0.24442608,109690.0,109680.0,0.99789998]
[1748347581765,0.24342608,109690.0,109680.0,1.23275519]
[1748347582069,0.24342608,109690.0,109680.0,1.23375519]
[1748347582262,0.24342608,109690.0,109680.0,1.22813314]
[1748347582767,0.06115688,109690.0,109680.0,1.22813314]
[1748347582971,0.03085688,109690.0,109680.0,1.23375519]
[1748347583167,0.00025688,109690.0,109680.0,1.32492719]
[1748347583372,0.00013688,109690.0,109680.0,1.32118938]
[1748347583667,0.1,109700.0,109690.0,0.1822692]
[1748347583870,0.1,109700.0,109690.0,1.58916336]
[1748347584171,0.1,109700.0,109690.0,1.60616276]
[1748347584862,0.1,109700.0,109690.0,1.69732275]
[1748347585164,0.1,109700.0,109690.0,1.69832088]
[1748347585363,0.1,109700.0,109690.0,1.69932088]
[1748347586070,0.10012,109700.0,109690.0,1.69932088]
[1748347586374,1.02528648,109730.0,109700.0,0.0455603]
[1748347586569,0.6193708,109730.0,109720.0,0.23440983]
[1748347586867,0.6193708,109730.0,109720.0,0.5322193]
[1748347587069,1.0572908,109730.0,109720.0,0.59580343]
[1748347587657,1.1227908,109730.0,109720.0,0.59580343]
[1748347587859,1.1227908,109730.0,109720.0,0.72532706]
[1748347587860,0.47022,109730.0,109720.0,0.72532706]
[1748347588061,0.00612,109730.0,109720.0,0.79062318]
[1748347588264,0.0364,109730.0,109720.0,1.60828706]
[1748347588474,0.06862,109730.0,109720.0,1.61389099]
[1748347588660,0.06862,109730.0,109720.0,1.02052843]
[1748347588858,0.06562,109730.0,109720.0,1.30276259]
[1748347589062,0.06562,109730.0,109720.0,1.34727866]
[1748347589063,0.06762,109730.0,109720.0,1.34727866]
[1748347589275,0.06762,109730.0,109720.0,1.33588506]
[1748347589474,0.06562,109730.0,109720.0,1.33588506]
[1748347589877,0.00312,109730.0,109720.0,1.33588506]
[1748347590171,0.00012,109730.0,109720.0,1.43262499]
[1748347590366,0.36216766,109750.0,109740.0,0.1821861]
[1748347590557,0.54433716,109750.0,109740.0,0.76677091]
[1748347590761,0.54433716,109750.0,109740.0,0.79787091]
[1748347590973,0.54445716,109750.0,109740.0,0.79787091]
[1748347591173,0.36228766,109750.0,109740.0,0.79787091]
[1748347591363,0.36216766,109750.0,109740.0,0.79787091]
[1748347591564,0.36228766,109750.0,109740.0,0.79787091]
[1748347591871,0.36428766,109750.0,109740.0,0.79787091]
[1748347592068,0.36428766,109750.0,109740.0,0.78648026]
[1748347592270,0.36428766,109750.0,109740.0,0.79787032]
[1748347592576,0.36428766,109750.0,109740.0,0.82807032]
[1748347593273,0.54733716,109750.0,109740.0,0.82807032]
[1748347593462,0.54745716,109750.0,109740.0,0.82807032]
[1748347593663,0.54745716,109750.0,109740.0,0.69539032]
[1748347594679,0.54745716,109750.0,109740.0,0.70913282]
[1748347594977,0.55184898,109750.0,109740.0,0.54950919]
[1748347595170,0.55184898,109750.0,109740.0,0.67803282]
[1748347595675,0.55184898,109750.0,109740.0,0.6808184]
[1748347595870,0.55184898,109750.0,109740.0,0.56368464]
[1748347596071,0.55184898,109750.0,109740.0,0.68081821]
[1748347598478,0.55184898,109750.0,109740.0,0.55229458]
[1748347599274,0.55184898,109750.0,109740.0,0.48636416]
[1748347599476,0.55184898,109750.0,109740.0,0.48357612]
[1748347600870,0.56184898,109750.0,109740.0,0.48357612]
[1748347602374,0.98936898,109750.0,109740.0,0.48357612]
[1748347602579,0.98936898,109750.0,109740.0,0.48357735]
[1748347604477,0.98936898,109750.0,109740.0,0.48637058]
[1748347604780,1.01976898,109750.0,109740.0,0.48637058]
[1748347605173,1.05256898,109750.0,109740.0,0.48637058]
[1748347606087,1.05256898,109750.0,109740.0,0.48637365]
[1748347607473,1.05256898,109750.0,109740.0,0.4900946]
[1748347608085,0.62504898,109750.0,109740.0,0.4900946]
[1748347608285,1.05252898,109750.0,109740.0,0.4900946]
[1748347608480,1.05252898,109750.0,109740.0,0.48729828]
[1748347609579,1.05252898,109750.0,109740.0,0.48729829]
[1748347611080,1.04252898,109750.0,109740.0,0.48729829]
[1748347611483,1.04252898,109750.0,109740.0,0.49290222]
[1748347613090,1.04252898,109750.0,109740.0,0.49290221]
[1748347613292,0.61504898,109750.0,109740.0,0.49290221]
[1748347613486,1.04248898,109750.0,109740.0,0.48918126]
[1748347613798,1.04248898,109750.0,109740.0,0.52532763]
[1748347614389,1.04248898,109750.0,109740.0,1.03069542]
[1748347614390,0.00887948,109750.0,109740.0,1.03069542]
[1748347614578,0.07257948,109750.0,109740.0,1.09409542]
[1748347614780,0.07245948,109750.0,109740.0,0.72769149]
[1748347614990,0.07257948,109750.0,109740.0,0.72769149]
[1748347615178,0.07257948,109750.0,109740.0,0.73521718]
[1748347615589,0.07157948,109750.0,109740.0,0.73521718]
[1748347615792,0.06957948,109750.0,109740.0,0.73521718]
[1748347616487,0.49697948,109750.0,109740.0,0.73521718]
[1748347616986,0.00451182,109750.0,109740.0,0.73521718]
[1748347617188,0.00439182,109750.0,109740.0,1.14418221]
[1748347617389,0.00439182,109750.0,109740.0,1.14779019]
[1748347617689,0.00451182,109750.0,109740.0,1.24050536]
[1748347619287,0.00451182,109750.0,109740.0,1.39998351]
[1748347619492,0.00451182,109750.0,109740.0,1.20261671]
[1748347619697,0.00451182,109750.0,109740.0,1.21822039]
[1748347619883,0.00451182,109750.0,109740.0,1.11522884]
[1748347620196,0.00451182,109750.0,109740.0,1.08965979]
[1748347620383,0.00451182,109750.0,109740.0,1.20257974]
[1748347621790,0.02588182,109750.0,109740.0,1.20257974]
[1748347622983,0.02588182,109750.0,109740.0,1.2403314]
[1748347623387,0.02576182,109750.0,109740.0,1.22894284]
[1748347623587,0.02576182,109750.0,109740.0,1.24033135]
[1748347623588,0.02588182,109750.0,109740.0,1.24033135]
[1748347624189,0.02588182,109750.0,109740.0,1.14776236]
[1748347624390,0.01366,109760.0,109750.0,0.1821695]
[1748347624597,0.01366,109760.0,109750.0,1.21952358]
[1748347624801,0.01366,109760.0,109750.0,1.23091209]
[1748347625101,0.01378,109760.0,109750.0,1.24204576]
[1748347625292,0.01378,109760.0,109750.0,1.23091209]
[1748347626092,0.01378,109760.0,109750.0,1.23841562]
[1748347626816,0.01378,109760.0,109750.0,1.23841482]
[1748347627216,0.01366,109760.0,109750.0,1.23841482]
[1748347627605,0.01378,109760.0,109750.0,1.23841482]
[1748347627915,0.01378,109760.0,109750.0,1.24744154]
[1748347628509,0.01378,109760.0,109750.0,1.30222101]
[1748347628816,0.01378,109760.0,109750.0,1.39479]
[1748347628999,0.01378,109760.0,109750.0,1.34001053]
[1748347629204,0.01378,109760.0,109750.0,1.24744154]
[1748347629513,0.01378,109760.0,109750.0,1.42324111]
[1748347629919,0.01378,109760.0,109750.0,1.38709245]
[1748347630108,0.01378,109760.0,109750.0,1.89435078]
[1748347630418,0.01366,109760.0,109750.0,1.86805274]
[1748347630610,0.01378,109760.0,109750.0,1.86805274]
[1748347631413,0.01378,109760.0,109750.0,1.86905274]
[1748347632004,0.01378,109760.0,109750.0,1.87105274]
[1748347632204,0.01366,109760.0,109750.0,1.8635556]
[1748347632409,0.01378,109760.0,109750.0,1.99957898]
[1748347633311,0.01378,109760.0,109750.0,1.95153347]
[1748347633512,0.0625,109780.0,109770.0,0.1821363]
[1748347633717,0.0625,109780.0,109770.0,1.38259936]
[1748347634016,0.06262,109780.0,109770.0,1.49897726]
[1748347634410,0.06262,109780.0,109770.0,1.34601031]
[1748347634810,0.06262,109780.0,109770.0,1.33851845]
[1748347635013,0.06462,109780.0,109770.0,1.33851845]
[1748347635319,0.06562,109780.0,109770.0,1.33851845]
[1748347635509,0.06562,109780.0,109770.0,1.49147266]
[1748347635717,0.06562,109780.0,109770.0,1.49896452]
[1748347636413,0.06562,109780.0,109770.0,1.3950536]
[1748347636719,0.06462,109780.0,109770.0,1.3950536]
[1748347637105,0.06462,109780.0,109770.0,1.33565822]
[1748347637312,0.06462,109780.0,109770.0,1.29050529]
[1748347637619,0.06262,109780.0,109770.0,1.29050529]
[1748347638804,0.06262,109780.0,109770.0,1.29046529]
[1748347639422,0.06262,109780.0,109770.0,1.3384491]
[1748347639922,0.0625,109780.0,109770.0,1.3384491]
[1748347640212,0.00012,109780.0,109770.0,1.6992491]
[1748347640413,0.09529,109790.0,109780.0,0.1821198]
[1748347640613,0.09529,109790.0,109780.0,1.15816802]
[1748347640819,0.09529,109790.0,109780.0,1.15816737]
[1748347641023,0.09541,109790.0,109780.0,1.15816737]
[1748347642012,0.09541,109790.0,109780.0,1.2024138]
[1748347642209,0.2775132,109790.0,109780.0,1.2024138]
[1748347642417,0.09541,109790.0,109780.0,1.2024138]
[1748347643319,0.09541,109790.0,109780.0,1.29472388]
[1748347644116,0.09541,109790.0,109780.0,1.10683087]
[1748347644317,0.09541,109790.0,109780.0,1.20243223]
[1748347646623,0.09541,109790.0,109780.0,1.30467223]
[1748347647020,0.09541,109790.0,109780.0,1.39698231]
[1748347647417,0.2775132,109790.0,109780.0,1.39698231]
[1748347648625,0.2775132,109790.0,109780.0,1.30467223]
[1748347648821,0.2775132,109790.0,109780.0,1.39698231]
[1748347649124,0.2775132,109790.0,109780.0,1.29474231]
[1748347649325,0.6383132,109790.0,109780.0,1.00308231]
[1748347649736,0.2775132,109790.0,109780.0,1.00264547]
[1748347650113,0.2775132,109790.0,109780.0,0.90040547]
[1748347650320,0.2775132,109790.0,109780.0,0.77188184]
[1748347650523,0.2775132,109790.0,109780.0,0.90040547]
[1748347650716,0.6383132,109790.0,109780.0,0.90040547]
[1748347651118,0.6371775,109790.0,109780.0,0.88905802]
[1748347651319,0.6371775,109790.0,109780.0,0.90044361]
[1748347652419,0.6371775,109790.0,109780.0,0.81755308]
[1748347652619,0.6371775,109790.0,109780.0,0.97198361]
[1748347652835,0.6371775,109790.0,109780.0,1.00288361]
[1748347654223,0.6371775,109790.0,109780.0,0.90064361]
[1748347654625,0.6371775,109790.0,109780.0,0.90068169]
[1748347655325,1.0641775,109790.0,109780.0,0.90068169]
[1748347655919,1.0641775,109790.0,109780.0,0.90507351]
[1748347656333,1.0641775,109790.0,109780.0,0.95984065]
[1748347656536,1.0641775,109790.0,109780.0,0.81276343]
[1748347657934,1.0641775,109790.0,109780.0,0.80137781]
[1748347658129,1.0641775,109790.0,109780.0,0.81276359]
[1748347659219,1.0641775,109790.0,109780.0,0.81320043]
[1748347659423,1.0641775,109790.0,109780.0,0.90551051]
[1748347660233,1.0641375,109790.0,109780.0,0.81320043]
[1748347660735,1.0641375,109790.0,109780.0,0.90551051]
[1748347661436,1.0641375,109790.0,109780.0,0.84043586]
[1748347661738,1.0641375,109790.0,109780.0,0.89994485]
[1748347661930,0.6371775,109790.0,109780.0,0.60164682]
[1748347662131,1.0641375,109790.0,109780.0,0.5666568]
[1748347662327,1.0641375,109790.0,109780.0,0.51277908]
[1748347662328,1.2574655,109790.0,109780.0,0.51277908]
[1748347662524,1.88598913,109790.0,109780.0,0.51277908]
[1748347663035,1.7574655,109790.0,109780.0,0.50902879]
[1748347663634,1.7574655,109790.0,109780.0,0.41671871]
[1748347663834,1.88598913,109790.0,109780.0,0.36858831]
[1748347664035,1.88598913,109790.0,109780.0,0.21672356]
[1748347664336,1.97108699,109790.0,109780.0,0.16858831]
[1748347664535,1.84256336,109790.0,109780.0,0.1657776]
[1748347665436,1.31336336,109790.0,109780.0,0.1657776]
[1748347665638,1.31336336,109790.0,109780.0,0.04776425]
[1748347665639,1.97104699,109790.0,109780.0,0.04776425]
[1748347665835,1.97104699,109790.0,109780.0,5e-08]
[1748347666033,1.88594913,109790.0,109780.0,5e-08]
[1748347666239,1.99993235,109790.0,109780.0,0.00439187]
[1748347667332,2.00093235,109790.0,109780.0,7e-08]
[1748347667936,2.00097235,109790.0,109780.0,7e-08]
[1748347668131,2.00497235,109790.0,109780.0,7e-08]
[1748347668530,1.88898913,109790.0,109780.0,0.00100007]
[1748347668735,1.89198913,109790.0,109780.0,0.00100007]
[1748347669430,1.89198913,109790.0,109780.0,0.30100007]
[1748347669635,1.97704471,109790.0,109780.0,0.07100007]
[1748347669836,1.97692471,109790.0,109780.0,0.07100007]
[1748347670046,1.44772471,109790.0,109780.0,0.07100007]
[1748347670246,1.97692471,109790.0,109780.0,0.07100007]
[1748347670643,1.97704471,109790.0,109780.0,0.07100007]
[1748347671040,1.19784471,109790.0,109780.0,0.00100007]
[1748347671244,1.72704471,109790.0,109780.0,0.27100007]
[1748347671544,1.30008471,109790.0,109780.0,0.27100007]
[1748347671743,1.72704471,109790.0,109780.0,0.27100007]
[1748347672248,1.72575471,109790.0,109780.0,0.27100007]
[1748347674249,0.42218645,109760.0,109750.0,0.39280149]
[1748347674437,0.1822028,109730.0,109720.0,0.22362]
[1748347674638,1.5330428,109730.0,109720.0,0.5423194]
[1748347674945,1.4650628,109730.0,109720.0,0.62821075]
[1748347675339,1.4651828,109730.0,109720.0,0.62540993]
[1748347675649,1.4330828,109730.0,109720.0,0.62540993]
[1748347675841,1.4339628,109730.0,109720.0,0.63040993]
[1748347676042,1.0748028,109730.0,109720.0,0.75893356]
[1748347676340,0.5456428,109730.0,109720.0,0.75893356]
[1748347676550,0.9726428,109730.0,109720.0,0.75893356]
[1748347677339,0.9725228,109730.0,109720.0,0.75893356]
[1748347677646,0.00264,109730.0,109720.0,0.75893356]
[1748347677851,0.00252,109730.0,109720.0,0.75893356]
[1748347678053,0.1858427,109730.0,109720.0,1.01493356]
[1748347678356,0.00352,109730.0,109720.0,0.86709356]
[1748347678555,0.00364,109730.0,109720.0,0.86709356]
[1748347678854,0.1858427,109730.0,109720.0,0.76493356]
[1748347680257,0.00364,109730.0,109720.0,0.76493356]
[1748347680460,0.1858427,109730.0,109720.0,0.76493356]
[1748347680660,0.1858427,109730.0,109720.0,0.81286466]
[1748347681155,0.1858427,109730.0,109720.0,1.17366466]
[1748347681344,0.00364,109730.0,109720.0,1.26595772]
[1748347681542,0.00013688,109740.0,109730.0,0.1822027]
[1748347681745,0.60936298,109740.0,109730.0,1.39914438]
[1748347682161,0.18244298,109740.0,109730.0,1.39914438]
[1748347682669,0.18344298,109740.0,109730.0,1.40414438]
[1748347682856,0.18444298,109740.0,109730.0,0.99741328]
[1748347683162,0.00225688,109740.0,109730.0,1.46073371]
[1748347683453,0.18444298,109740.0,109730.0,1.26601686]
[1748347683650,0.00225688,109740.0,109730.0,1.26601686]
[1748347683847,0.00213688,109740.0,109730.0,1.26601686]
[1748347684048,0.00225688,109740.0,109730.0,1.26601686]
[1748347684858,0.18444298,109740.0,109730.0,1.26601686]
[1748347685547,0.18444298,109740.0,109730.0,1.16381686]
[1748347685752,0.18444298,109740.0,109730.0,1.26601686]
[1748347686261,0.00225688,109740.0,109730.0,1.26601686]
[1748347686956,0.18444298,109740.0,109730.0,0.77669323]
[1748347687155,0.18444298,109740.0,109730.0,1.31399078]
[1748347687554,0.00225688,109740.0,109730.0,1.31399078]
[1748347688358,0.00225688,109740.0,109730.0,1.4061872]
[1748347688959,0.18444298,109740.0,109730.0,1.4061872]
[1748347689855,0.18444298,109740.0,109730.0,1.40641389]
[1748347690747,0.18444298,109740.0,109730.0,1.31403899]
[1748347691358,0.54524298,109740.0,109730.0,0.91709026]
[1748347691560,0.18444298,109740.0,109730.0,1.40641389]
[1748347692261,0.18444298,109740.0,109730.0,1.04561389]
[1748347692565,0.18444298,109740.0,109730.0,0.94341389]
[1748347692566,0.54524298,109740.0,109730.0,0.94341389]
[1748347692757,0.57844298,109740.0,109730.0,0.94341389]
[1748347693261,0.57844298,109740.0,109730.0,0.58049703]
[1748347693465,0.61154298,109740.0,109730.0,0.76680356]
[1748347693765,0.61154298,109740.0,109730.0,0.58460086]
[1748347693966,1.18078298,109740.0,109730.0,0.57326684]
[1748347694660,1.1851748,109740.0,109730.0,0.5184774]
[1748347694866,1.1851748,109740.0,109730.0,0.7006802]
[1748347695057,1.1851748,109740.0,109730.0,0.75549366]
[1748347695258,1.1851748,109740.0,109730.0,0.5184774]
[1748347695458,1.1851748,109740.0,109730.0,0.57330461]
[1748347695662,1.18078298,109740.0,109730.0,0.5184774]
[1748347695860,1.18078298,109740.0,109730.0,0.7006802]
[1748347697759,1.18078298,109740.0,109730.0,0.6081033]
[1748347700172,1.18078298,109740.0,109730.0,0.60814834]
[1748347700471,1.14078298,109740.0,109730.0,0.60814834]
[1748347701170,1.03858298,109740.0,109730.0,0.73667197]
[1748347701562,1.04858298,109740.0,109730.0,0.73667197]
[1748347702463,1.04858298,109740.0,109730.0,0.82924887]
[1748347702759,1.04858298,109740.0,109730.0,0.73667197]
[1748347704471,1.04858298,109740.0,109730.0,0.61189679]
[1748347704661,1.04858298,109740.0,109730.0,0.58109679]
[1748347706568,1.15074298,109740.0,109730.0,0.58109679]
[1748347706771,1.15074298,109740.0,109730.0,0.58009679]
[1748347707075,1.15074298,109740.0,109730.0,0.53295125]
[1748347707372,1.15074298,109740.0,109730.0,0.58111982]
[1748347707564,0.72370298,109740.0,109730.0,0.58111982]
[1748347707755,0.72370298,109740.0,109730.0,0.74184345]
[1748347707756,0.61142298,109740.0,109730.0,0.74184345]
[1748347707961,0.25074298,109740.0,109730.0,0.7984258]
[1748347708165,0.67778298,109740.0,109730.0,0.83654772]
[1748347708370,0.67766298,109740.0,109730.0,0.83654772]
[1748347708573,0.67778298,109740.0,109730.0,0.83654772]
[1748347709569,0.67778298,109740.0,109730.0,0.78837915]
[1748347712068,0.67778298,109740.0,109730.0,0.6554637]
[1748347712271,0.14293962,109770.0,109760.0,0.1821529]
[1748347712474,0.14293962,109770.0,109760.0,1.60134478]
[1748347712475,0.73122117,109770.0,109760.0,1.60134478]
[1748347712772,0.67464396,109770.0,109760.0,1.70179125]
[1748347713076,0.67476396,109770.0,109760.0,1.70179125]
[1748347713277,0.24760396,109770.0,109760.0,1.70741453]
[1748347713478,0.67472396,109770.0,109760.0,1.70741453]
[1748347713668,0.67572396,109770.0,109760.0,1.80189456]
[1748347714072,0.67572396,109770.0,109760.0,1.65457248]
[1748347714267,0.67572396,109770.0,109760.0,1.49691353]
[1748347714472,0.67772396,109770.0,109760.0,1.49691353]
[1748347715376,0.67572396,109770.0,109760.0,1.49791353]
[1748347716073,0.24872396,109770.0,109760.0,1.50230535]
[1748347716275,0.67572396,109770.0,109760.0,1.50230535]
[1748347716771,0.24872396,109770.0,109760.0,1.50230535]
[1748347716977,0.67572396,109770.0,109760.0,1.50230535]
[1748347717177,0.17217242,109790.0,109780.0,0.1821197]
[1748347717178,0.14763201,109790.0,109780.0,0.1821197]
[1748347717373,0.61131921,109800.0,109790.0,0.1821031]
[1748347717576,1.11670191,109800.0,109790.0,1.29189199]
[1748347717876,1.0601247,109800.0,109790.0,1.23721695]
[1748347718179,1.0602447,109800.0,109790.0,1.23721695]
[1748347718570,1.0602447,109800.0,109790.0,1.14473692]
[1748347718772,1.0612447,109800.0,109790.0,1.01621329]
[1748347719483,1.0622447,109800.0,109790.0,0.96819363]
[1748347719675,1.0621247,109800.0,109790.0,0.96819363]
[1748347720084,1.0622447,109800.0,109790.0,0.96819363]
[1748347722473,1.51076833,109800.0,109790.0,0.6708]
[1748347722676,1.24076833,109800.0,109790.0,0.31]
[1748347722880,1.53076833,109800.0,109790.0,0.31]
[1748347723477,1.62184834,109800.0,109790.0,0.1765862]
[1748347723775,0.1821197,109780.0,109770.0,0.36093688]
[1748347724076,0.84964333,109780.0,109770.0,0.68093688]
[1748347724284,0.1821197,109780.0,109770.0,1.07658734]
[1748347724487,0.033,109790.0,109780.0,0.1821197]
[1748347724683,0.033,109790.0,109780.0,1.21437763]
[1748347724684,0.2151032,109790.0,109780.0,1.21437763]
[1748347724883,0.6504879,109800.0,109790.0,0.1821032]
[1748347725093,1.0452679,109800.0,109790.0,1.07826838]
[1748347725292,0.6183879,109800.0,109790.0,1.07826838]
[1748347725479,0.6185079,109800.0,109790.0,1.07826838]
[1748347725679,1.0453879,109800.0,109790.0,1.07826838]
[1748347725875,1.0443879,109800.0,109790.0,1.07826838]
[1748347726690,1.0463879,109800.0,109790.0,1.07826838]
[1748347726892,0.3133603,109800.0,109790.0,1.49999736]
[1748347727191,0.3133603,109800.0,109790.0,1.16265619]
[1748347727394,0.3133603,109800.0,109790.0,1.2104569]